bitfinex-derivatives/quotes_SOLF0:USTF0_20220110
["timestamp","ask_amount","ask_price","bid_price","bid_amount"]
[1641773258329,27.66479,140.92,140.85,27.66479]
[1641773259430,3.42826531,140.86,140.85,27.66479]
[1641773259631,27.66479,140.94,140.85,27.66479]
[1641773259830,1.774,140.96,140.85,27.66479]
[1641773260031,1.774,140.98,140.86,28.86821112]
[1641773260231,4.0,140.99,140.94,27.66479]
[1641773260434,4.0,141.0,140.94,27.66479]
[1641773260832,14.8473261,141.03,140.94,27.66479]
[1641773261031,14.8473261,141.03,140.95,7.08993584]
[1641773261231,4.0,141.01,140.94,27.66479]
[1641773261437,27.66479,141.04,140.94,27.66479]
[1641773261633,1.772,141.03,140.94,27.66479]
[1641773261832,4.0,141.0,140.94,27.66479]
[1641773262233,4.0,141.0,140.94,55.32958]
[1641773262432,4.0,141.02,140.94,55.32958]
[1641773262634,4.0,140.98,140.94,55.32958]
[1641773262833,4.0,141.03,140.94,55.32958]
[1641773262834,1.772,141.03,140.94,55.32958]
[1641773263234,4.0,141.02,140.94,55.32958]
[1641773263436,27.66479,141.04,140.94,55.32958]
[1641773263635,27.66479,141.04,140.95,1.772]
[1641773263834,27.66479,141.07,140.95,1.772]
[1641773264038,4.0,141.05,140.97,7.08893063]
[1641773264235,4.0,141.02,140.97,34.75372063]
[1641773264436,4.0,141.06,140.97,34.75372063]
[1641773264636,4.0,141.0,140.97,34.75372063]
[1641773264838,4.0,140.98,140.97,27.66479]
[1641773265041,4.0,140.98,140.94,27.66479]
[1641773265238,4.0,140.97,140.91,219.60652172]
[1641773265440,4.0,140.97,140.91,154.55212172]
[1641773265637,4.0,140.97,140.91,89.39262172]
[1641773265838,4.0,140.97,140.91,74.54529562]
[1641773266440,29.43679,141.01,140.91,102.21008562]
[1641773266838,1.772,141.01,140.94,7.09018718]
[1641773267040,4.0,140.99,140.95,4.02591284]
[1641773267239,2.66363667,141.02,140.95,4.02591284]
[1641773267539,4.0,141.06,141.01,5.67330321]
[1641773267741,4.0,141.09,141.01,5.67330321]
[1641773267941,1.772,141.12,141.01,5.67330321]
[1641773268341,33.43679,141.12,141.01,27.66479]
[1641773268541,4.0,141.05,141.01,27.66479]
[1641773269744,4.0,141.06,141.01,27.66479]
[1641773270243,1.772,141.1,141.01,27.66479]
[1641773270244,5.772,141.1,141.01,27.66479]
[1641773270946,4.0,141.09,141.01,27.66479]
[1641773271146,1.772,141.11,141.01,27.66479]
[1641773271347,4.0,141.09,141.01,27.66479]
[1641773271751,4.0,141.1,141.01,27.66479]
[1641773271947,4.0,141.1,141.02,1.772]
[1641773272348,4.0,141.08,141.04,27.66479]
[1641773272750,33.43679,141.12,141.04,27.66479]
[1641773273551,4.0,141.07,141.04,27.66479]
[1641773274751,27.66479,141.12,141.04,27.66479]
[1641773274951,4.0,141.09,141.04,27.66479]
[1641773276153,4.0,141.06,141.02,4.02380911]
[1641773276553,4.0,141.05,141.02,4.02380911]
[1641773276857,4.0,141.06,141.02,4.02380911]
[1641773277053,4.0,141.03,141.02,4.02380911]
[1641773278056,4.0,141.05,141.02,4.02380911]
[1641773278255,4.0,141.03,141.02,4.02380911]
[1641773278457,5.67070035,141.08,141.02,4.02380911]
[1641773278757,9.67070035,141.08,141.02,4.02380911]
[1641773278957,1.772,141.09,141.02,4.02380911]
[1641773279158,27.66479,141.1,141.02,4.02380911]
[1641773279361,27.66479,141.1,141.01,27.66479]
[1641773279562,4.0,141.06,141.05,4.0240726]
[1641773279961,4.0,141.09,141.05,4.0240726]
[1641773280161,27.66479,141.1,141.05,4.0240726]
[1641773280362,1.772,141.17,141.07,27.66479]
[1641773280564,4.0,141.1,141.07,27.66479]
[1641773280764,4.0,141.11,141.07,27.66479]
[1641773281965,1.77,141.16,141.07,27.66479]
[1641773282162,5.77,141.16,141.05,4.0240726]
[1641773282363,27.66479,141.15,141.05,4.0240726]
[1641773282564,4.0,141.1,141.05,4.0240726]
[1641773282765,27.66479,141.15,141.05,4.0240726]
[1641773283163,4.0,141.1,141.05,4.0240726]
[1641773283768,4.0,141.1,141.04,93.42119]
[1641773283964,4.0,141.1,141.05,4.02424361]
[1641773284365,4.0,141.14,141.05,4.02424361]
[1641773284566,5.77,141.14,141.05,4.02424361]
[1641773284765,4.0,141.09,141.05,4.02424361]
[1641773284967,31.66479,141.15,141.05,4.02424361]
[1641773285166,37.33267479,141.15,141.05,4.02424361]
[1641773285667,4.0,141.1,141.05,4.02424361]
[1641773286370,33.33270813,141.15,141.05,4.02424361]
[1641773286568,27.66479,141.15,141.05,4.02424361]
[1641773286770,1.772,141.17,141.06,7.08441075]
[1641773286970,4.0,141.18,141.07,21.77]
[1641773287172,4.0,141.18,141.09,5.66988909]
[1641773287376,4.0,141.17,141.09,5.66988909]
[1641773287576,14.8473261,141.19,141.1,20.0]
[1641773287776,14.8473261,141.22,141.11,14.52089249]
[1641773288177,14.8473261,141.22,141.13,5.6682282]
[1641773288380,14.8473261,141.22,141.14,1.77]
[1641773288579,14.8473261,141.22,141.16,27.66479]
[1641773288778,2.51068284,141.24,141.16,27.66479]
[1641773288978,2.51068284,141.24,141.16,29.43479]
[1641773289780,4.0,141.27,141.19,5.66602111]
[1641773289980,4.0,141.28,141.2,1.77]
[1641773290179,14.8473261,141.29,141.2,21.77]
[1641773290380,14.8473261,141.29,141.21,5.66528049]
[1641773290579,18.8473261,141.29,141.22,29.43279]
[1641773290780,4.0,141.28,141.22,27.66479]
[1641773290981,4.0,141.29,141.22,27.66479]
[1641773291580,4.0,141.27,141.22,27.66479]
[1641773291781,4.0,141.26,141.22,27.66479]
[1641773292181,4.0,141.29,141.22,27.66479]
[1641773292581,18.8473261,141.3,141.25,27.66479]
[1641773293180,14.8473261,141.3,141.25,27.66479]
[1641773293383,4.0,141.29,141.25,27.66479]
[1641773293885,4.0,141.26,141.19,7.43385268]
[1641773294082,4.0,141.2,141.17,139.87609916]
[1641773294284,4.0,141.21,141.17,4.02029916]
[1641773294581,27.66479,141.25,141.17,31.68508916]
[1641773294781,4.0,141.22,141.17,31.68508916]
[1641773295084,27.66479,141.25,141.17,31.68508916]
[1641773295282,1.77,141.26,141.17,31.68508916]
[1641773295482,29.43479,141.27,141.17,31.68508916]
[1641773295883,4.0,141.24,141.17,31.68508916]
[1641773297085,4.0,141.21,141.17,31.68508916]
[1641773297285,4.0,141.18,141.16,1.77]
[1641773297484,4.0,141.18,141.15,27.66479]
[1641773297685,4.0,141.22,141.11,1.77]
[1641773297884,4.0,141.16,141.11,1.77]
[1641773298085,4.0,141.21,141.1,28.16403986]
[1641773298286,4.0,141.23,141.2,4.02046155]
[1641773298686,14.8473261,141.26,141.2,4.02046155]
[1641773298884,4.0,141.22,141.2,4.02046155]
[1641773299285,5.77,141.27,141.2,4.02046155]
[1641773299486,4.0,141.24,141.2,4.02046155]
[1641773299685,4.0,141.25,141.2,4.02046155]
[1641773300086,14.51394683,141.28,141.2,4.02046155]
[1641773300288,4.0,141.24,141.2,4.02046155]
[1641773300787,2.50226942,141.27,141.2,4.02046155]
[1641773301189,6.50226942,141.27,141.2,9.68597829]
[1641773301392,4.0,141.27,141.2,9.68597829]
[1641773301593,4.0,141.28,141.2,9.68597829]
[1641773301793,14.8473261,141.31,141.22,12.74082756]
[1641773302191,4.0,141.28,141.22,12.74082756]
[1641773302392,14.8473261,141.33,141.22,81.32832756]
[1641773302591,42.5121161,141.33,141.25,27.66479]
[1641773303193,4.0,141.29,141.25,27.66479]
[1641773303793,31.66479,141.33,141.25,27.66479]
[1641773304193,4.0,141.29,141.25,27.66479]
[1641773304493,31.66479,141.33,141.25,27.66479]
[1641773305298,4.0,141.29,141.25,27.66479]
[1641773307296,29.43279,141.35,141.25,27.66479]
[1641773307498,14.8473261,141.37,141.25,34.73967769]
[1641773307696,14.8473261,141.37,141.26,7.43109573]
[1641773307898,5.768,141.39,141.26,7.43109573]
[1641773307899,4.0,141.34,141.26,7.43109573]
[1641773308097,4.0,141.34,141.28,5.66229926]
[1641773308299,4.0,141.34,141.29,1.768]
[1641773308498,14.8473261,141.36,141.29,1.768]
[1641773308698,18.8473261,141.36,141.32,27.66479]
[1641773308902,14.8473261,141.36,141.32,27.66479]
[1641773309300,39.62061166,141.39,141.32,27.66479]
[1641773309502,14.8473261,141.4,141.32,27.66479]
[1641773309702,4.0,141.37,141.32,27.66479]
[1641773310504,14.8473261,141.42,141.32,27.66479]
[1641773310703,14.8473261,141.42,141.32,60.39665363]
[1641773310903,14.8473261,141.42,141.35,5.65957431]
[1641773311304,17.34472582,141.42,141.35,5.65957431]
[1641773311504,17.34472582,141.42,141.37,20.0]
[1641773311505,2.49739972,141.42,141.37,20.0]
[1641773311805,2.49739972,141.42,141.37,25.65883643]
[1641773312004,2.49739972,141.42,141.38,7.06813684]
[1641773312304,2.49739972,141.42,141.39,1.768]
[1641773312604,14.8473261,141.44,141.41,27.66479]
[1641773313304,4.0,141.46,141.41,27.66479]
[1641773313506,4.0,141.45,141.41,27.66479]
[1641773313704,4.0,141.46,141.41,27.66479]
[1641773313904,4.0,141.44,141.41,27.66479]
[1641773314104,4.0,141.43,141.41,27.66479]
[1641773314306,5.766,141.49,141.41,27.66479]
[1641773314505,4.0,141.43,141.41,27.66479]
[1641773314905,4.0,141.48,141.41,27.66479]
[1641773315105,4.0,141.44,141.41,27.66479]
[1641773315310,4.0,141.46,141.41,27.66479]
[1641773316510,70.1769061,141.5,141.41,27.66479]
[1641773316707,4.0,141.47,141.41,27.66479]
[1641773316906,70.1769061,141.5,141.41,27.66479]
[1641773317106,70.1769061,141.5,141.42,20.0]
[1641773317107,42.5121161,141.5,141.42,20.0]
[1641773317307,14.8473261,141.49,141.43,1.766]
[1641773317507,18.8473261,141.49,141.43,1.766]
[1641773317707,18.8473261,141.49,141.42,1.766]
[1641773318308,4.0,141.49,141.42,1.766]
[1641773318709,4.0,141.5,141.45,27.66479]
[1641773319412,14.8473261,141.53,141.45,34.72943147]
[1641773319611,18.8473261,141.53,141.45,34.72943147]
[1641773320012,4.0,141.53,141.45,34.72943147]
[1641773320515,4.0,141.53,141.45,40.38493493]
[1641773320717,4.0,141.53,141.51,27.66479]
[1641773322014,4.0,141.53,141.51,15.62444853]
[1641773323815,4.0,141.57,141.51,15.62444853]
[1641773324117,4.0,141.53,141.51,15.62444853]
[1641773324517,16.6133261,141.58,141.51,15.62444853]
[1641773324716,4.0,141.53,141.51,15.62444853]
[1641773325117,4.0,141.52,141.46,127.631]
[1641773325319,14.8473261,141.57,141.46,1.766]
[1641773325518,4.0,141.53,141.45,177.40723493]
[1641773326321,4.0,141.5,141.45,177.40723493]
[1641773326522,4.0,141.56,141.45,108.73783493]
[1641773326722,1.766,141.55,141.45,108.73783493]
[1641773327022,4.0,141.53,141.45,108.73783493]
[1641773327222,29.43079,141.55,141.47,5.65475964]
[1641773327422,4.0,141.53,141.47,5.65475964]
[1641773327624,27.66479,141.55,141.47,5.65475964]
[1641773328223,4.0,141.54,141.47,5.65475964]
[1641773328422,4.0,141.53,141.47,5.65475964]
[1641773328826,4.0,141.54,141.47,5.65475964]
[1641773329228,27.66479,141.55,141.47,5.65475964]
[1641773329630,42.5121161,141.55,141.47,5.65475964]
[1641773330331,4.0,141.53,141.47,5.65475964]
[1641773330833,4.0,141.52,141.46,1.766]
[1641773331030,42.5121161,141.55,141.45,103.08233147]
[1641773331231,4.0,141.51,141.45,96.01769]
[1641773331436,14.8473261,141.52,141.45,33.32049694]
[1641773331633,39.62061166,141.55,141.49,7.06289508]
[1641773331833,39.62061166,141.55,141.5,1.766]
[1641773332035,39.62061166,141.55,141.51,5.65308683]
[1641773332236,39.62061166,141.61,141.52,21.766]
[1641773332436,43.62061166,141.61,141.52,21.766]
[1641773332638,4.0,141.6,141.52,21.766]
[1641773332836,39.62061166,141.61,141.55,27.66479]
[1641773333038,59.09890578,141.65,141.58,7.05840833]
[1641773333237,59.09890578,141.65,141.59,1.764]
[1641773333443,5.78e-06,141.65,141.61,5.64908625]
[1641773333638,5.78e-06,141.65,141.62,1.764]
[1641773333839,39.60955018,141.65,141.64,7.05542033]
[1641773334038,5.78e-06,141.69,141.64,7.05542033]
[1641773334438,5.78e-06,141.69,141.65,7.05467372]
[1641773334639,5.78e-06,141.69,141.68,7.05268355]
[1641773334839,5.78e-06,141.69,141.68,34.71747355]
[1641773335040,102.54811289,141.73,141.68,34.71747355]
[1641773335243,4.0,141.73,141.68,34.71747355]
[1641773335542,4.0,141.72,141.68,34.71747355]
[1641773335741,33.42879,141.78,141.68,34.71747355]
[1641773336042,33.42879,141.78,141.71,7.05168888]
[1641773336241,31.66479,141.78,141.71,7.05168888]
[1641773336640,27.66479,141.78,141.71,7.05168888]
[1641773336841,4.0,141.78,141.74,27.66479]
[1641773337041,4.0,141.79,141.74,27.66479]
[1641773337241,4.0,141.82,141.74,27.66479]
[1641773337441,4.0,141.85,141.74,27.66479]
[1641773337641,1.762,141.86,141.74,27.66479]
[1641773337642,14.90064892,141.81,141.74,27.66479]
[1641773337841,14.90064892,141.81,141.78,7.04820975]
[1641773338544,4.0,141.79,141.74,27.66479]
[1641773338742,1.762,141.78,141.62,24.0]
[1641773338943,27.66479,141.74,141.65,27.66479]
[1641773339143,27.66479,141.76,141.66,1.764]
[1641773339747,27.66479,141.76,141.67,7.05318098]
[1641773340347,27.66479,141.76,141.68,1.764]
[1641773340547,4.0,141.75,141.66,1.764]
[1641773340748,4.0,141.74,141.64,1.764]
[1641773340947,27.66479,141.71,141.63,29.42879]
[1641773341351,27.66479,141.71,141.63,1.764]
[1641773341550,4.0,141.68,141.62,68.8977]
[1641773341750,4.0,141.68,141.6,64.3836]
[1641773341949,4.0,141.68,141.58,1.764]
[1641773342351,1.764,141.7,141.59,5.64988646]
[1641773342551,27.66479,141.71,141.6,1.764]
[1641773342956,27.66479,141.67,141.6,1.764]
[1641773343355,27.66479,141.67,141.63,4.0063546]
[1641773344956,27.66479,141.64,141.63,4.0063546]
[1641773345559,31.66479,141.64,141.63,4.0063546]
[1641773345757,31.66479,141.64,141.58,1.764]
[1641773345957,27.66479,141.64,141.54,25.764]
[1641773346157,27.66479,141.64,141.56,12.70985415]
[1641773346363,27.66479,141.64,141.58,4.0]
[1641773346557,27.66479,141.64,141.6,20.0]
[1641773346758,27.66479,141.64,141.61,1.764]
[1641773346958,27.66479,141.67,141.59,1.764]
[1641773347157,27.66479,141.67,141.6,9.64935584]
[1641773347362,7.05890658,141.72,141.61,5.764]
[1641773347558,7.05890658,141.72,141.62,5.64856997]
[1641773347757,7.05890658,141.72,141.63,1.764]
[1641773348560,7.05890658,141.72,141.64,4.00818807]
[1641773348862,27.66479,141.71,141.64,4.00818807]
[1641773351163,4.0,141.66,141.64,4.00818807]
[1641773351363,11.40976836,141.7,141.56,13.84041924]
[1641773351563,4.0,141.67,141.56,15.60441924]
[1641773352463,4.0,141.69,141.56,15.60441924]
[1641773352664,1.764,141.7,141.58,5.65026121]
[1641773352866,27.66479,141.65,141.59,1.764]
[1641773353868,4.0,141.64,141.59,1.764]
[1641773354067,4.0,141.63,141.55,5.65139778]
[1641773354267,4.0,141.61,141.53,1.764]
[1641773354468,4.0,141.63,141.52,1.764]
[1641773354670,29.43079,141.65,141.53,24.0]
[1641773354867,55.32958,141.65,141.56,5.65118138]
[1641773355268,27.66479,141.65,141.57,1.764]
[1641773356472,27.66479,141.65,141.57,5.77317379]
[1641773357870,31.66479,141.65,141.57,4.00917379]
[1641773358072,27.66479,141.65,141.57,4.00917379]
[1641773358273,4.0,141.61,141.57,4.00917379]
[1641773358472,4.0,141.62,141.57,4.00917379]
[1641773358873,27.66479,141.58,141.57,4.00917379]
[1641773359074,27.66479,141.6,141.57,4.00917379]
[1641773359273,1.764,141.65,141.57,4.00917379]
[1641773359474,5.764,141.66,141.57,4.00917379]
[1641773359673,63.7368,141.67,141.57,4.00917379]
[1641773359874,4.0,141.66,141.57,4.00917379]
[1641773360073,4.0,141.64,141.57,4.00917379]
[1641773360475,4.0,141.63,141.57,4.00917379]
[1641773360773,4.0,141.64,141.58,4.00935061]
[1641773360973,31.66479,141.6,141.58,4.00935061]
[1641773361176,4.0,141.59,141.58,4.00935061]
[1641773361377,4.0,141.59,141.51,64.7991]
[1641773361576,4.0,141.56,141.48,1.764]
[1641773361874,4.0,141.57,141.47,5.65474297]
[1641773362073,1.766,141.59,141.47,5.65474297]
[1641773362681,1.766,141.59,141.48,24.0]
[1641773362879,27.66479,141.6,141.5,40.3803412]
[1641773363080,2.49824287,141.58,141.51,1.766]
[1641773363682,6.49824287,141.58,141.51,1.766]
[1641773363880,6.49824287,141.58,141.48,1.766]
[1641773363881,4.0,141.55,141.48,1.766]
[1641773364281,4.0,141.58,141.52,2.48852521]
[1641773364481,1.766,141.57,141.52,2.48852521]
[1641773364881,27.66479,141.55,141.52,2.48852521]
[1641773365082,1.766,141.58,141.52,2.48852521]
[1641773365284,2.49824287,141.56,141.49,7.41974925]
[1641773366587,4.0,141.56,141.5,2.48852521]
[1641773366984,27.66479,141.53,141.5,2.48852521]
[1641773367589,27.66479,141.53,141.48,4.0111808]
[1641773368991,55.32958,141.53,141.48,4.0111808]
[1641773370695,55.32958,141.53,141.45,1.766]
[1641773370897,59.32958,141.53,141.44,138.1376]
[1641773371096,27.66479,141.5,141.44,138.1376]
[1641773371297,27.66479,141.5,141.44,70.1726]
[1641773371697,4.0,141.48,141.4,22.3586353]
[1641773371896,27.66479,141.5,141.4,14.93501876]
[1641773371897,4.0,141.47,141.4,14.93501876]
[1641773372097,4.0,141.48,141.4,14.93501876]
[1641773372499,4.0,141.48,141.41,2.47766618]
[1641773372698,29.43079,141.5,141.41,2.47766618]
[1641773372899,27.66479,141.5,141.42,1.766]
[1641773373098,27.66479,141.5,141.42,29.43079]
[1641773373300,27.66479,141.5,141.42,1.766]
[1641773373501,27.66479,141.5,141.41,5.65691288]
[1641773373700,4.0,141.49,141.4,27.66479]
[1641773374102,27.66479,141.5,141.4,27.66479]
[1641773374901,27.66479,141.5,141.4,53.32239828]
[1641773375100,27.66479,141.45,141.4,53.32239828]
[1641773375301,27.66479,141.5,141.41,1.766]
[1641773375501,27.66479,141.5,141.4,55.08839828]
[1641773375702,27.66479,141.5,141.42,5.65680025]
[1641773376302,4.0,141.48,141.4,27.66479]
[1641773376602,4.0,141.47,141.4,27.66479]
[1641773376801,4.0,141.45,141.38,63.5292]
[1641773377003,27.66479,141.42,141.38,63.5292]
[1641773377202,27.66479,141.42,141.35,88.22111876]
[1641773377403,27.66479,141.42,141.35,84.22111876]
[1641773378002,4.0,141.41,141.35,69.2861]
[1641773378203,4.0,141.38,141.32,14.93501876]
[1641773378405,1.768,141.4,141.32,14.93501876]
[1641773378603,4.0,141.37,141.32,14.93501876]
[1641773378803,4.0,141.37,141.27,1.768]
[1641773379003,27.66479,141.3,141.26,14.93501876]
[1641773380008,27.66479,141.32,141.26,14.93501876]
[1641773380206,4.0,141.37,141.26,14.93501876]
[1641773380404,1.768,141.38,141.25,9.90296336]
[1641773380606,1.768,141.38,141.3,7.07188572]
[1641773380806,1.768,141.43,141.31,1.768]
[1641773381003,27.66479,141.4,141.31,71.6292]
[1641773382006,33.43279,141.4,141.29,64.8768]
[1641773382207,27.66479,141.4,141.29,64.8768]
[1641773382407,1.768,141.39,141.29,64.8768]
[1641773382609,4.0,141.38,141.29,64.8768]
[1641773382808,1.768,141.39,141.3,4.0]
[1641773383007,55.32958,141.4,141.3,29.43279]
[1641773383209,3.29822555,141.36,141.3,27.66479]
[1641773383410,3.29822555,141.36,141.29,64.8768]
[1641773384712,4.0,141.33,141.29,64.8768]
[1641773384909,1.768,141.35,141.27,69.5198]
[1641773385110,27.66479,141.33,141.27,69.5198]
[1641773385310,27.66479,141.35,141.27,76.59318638]
[1641773385912,3.29822555,141.36,141.28,9.66221616]
[1641773386111,7.07739127,141.35,141.29,1.768]
[1641773386312,7.07739127,141.35,141.26,1.768]
[1641773386513,7.07739127,141.35,141.3,4.01531338]
[1641773386713,3.29822555,141.36,141.3,4.01531338]
[1641773387113,3.29822555,141.36,141.31,1.768]
[1641773387317,27.66479,141.39,141.3,33.44810338]
[1641773387513,30.96246315,141.39,141.31,5.66094018]
[1641773387813,30.96246315,141.39,141.32,1.768]
[1641773389117,30.96246315,141.39,141.32,7.42887734]
[1641773389314,30.96246315,141.39,141.32,5.66087734]
[1641773389514,30.96246315,141.39,141.33,1.768]
[1641773391325,3.29767315,141.39,141.35,4.0]
[1641773391517,8.83838569,141.49,141.38,4.0]
[1641773391716,84.68521876,141.51,141.39,1.766]
[1641773391915,84.68521876,141.51,141.39,7.42410216]
[1641773392117,82.91721876,141.51,141.39,11.42410216]
[1641773392518,82.91721876,141.51,141.41,5.65696798]
[1641773392716,14.93501876,141.51,141.42,1.766]
[1641773392918,11.06838664,141.53,141.42,1.766]
[1641773393218,27.66479,141.49,141.42,1.766]
[1641773393818,27.66479,141.49,141.39,1.766]
[1641773394018,27.66479,141.49,141.38,36.22079483]
[1641773395120,27.66479,141.49,141.4,24.0]
[1641773395318,27.66479,141.51,141.41,5.65729055]
[1641773395518,27.66479,141.51,141.42,1.766]
[1641773396120,27.66479,141.51,141.43,4.0]
[1641773396321,7.06838664,141.53,141.44,11.42188238]
[1641773396523,65.4179,141.55,141.44,11.42188238]
[1641773397222,93.08269,141.55,141.45,27.66479]
[1641773397423,27.66479,141.55,141.46,1.766]
[1641773398323,27.66479,141.55,141.45,27.66479]
[1641773398924,27.66479,141.55,141.47,4.0]
[1641773399125,27.66479,141.55,141.49,27.66479]
[1641773399725,27.66479,141.55,141.5,1.766]
[1641773400325,27.66479,141.55,141.48,5.65417059]
[1641773402326,27.66479,141.55,141.49,1.766]
[1641773403531,27.66479,141.55,141.48,7.42017059]
[1641773404430,27.66479,141.55,141.49,4.01122663]
[1641773406731,4.0,141.54,141.49,4.01122663]
[1641773406932,4.0,141.52,141.42,1.766]
[1641773407132,5.766,141.51,141.41,72.5589]
[1641773407333,27.66479,141.47,141.4,8.14688641]
[1641773409836,27.66479,141.49,141.4,8.14688641]
[1641773410036,27.66479,141.49,141.41,1.766]
[1641773411039,17.23911171,141.54,141.43,5.6563177]
[1641773411237,27.66479,141.53,141.44,27.66479]
[1641773411438,3.50920777,141.51,141.45,1.766]
[1641773413342,3.50920777,141.51,141.45,7.42149837]
[1641773415546,27.66479,141.53,141.45,7.42149837]
[1641773416044,3.50665225,141.5,141.45,7.42149837]
[1641773417749,3.50665225,141.5,141.48,5.65449767]
[1641773417949,27.66479,141.55,141.49,1.766]
[1641773420653,27.66479,141.55,141.48,7.42049767]
[1641773421253,42.59980876,141.58,141.49,5.65398078]
[1641773421458,42.59980876,141.58,141.5,1.766]
[1641773421653,42.59980876,141.58,141.51,5.65318669]
[1641773422754,2.50174847,141.57,141.51,5.65318669]
[1641773423353,2.50174847,141.57,141.53,5.65235415]
[1641773424156,27.66479,141.6,141.54,1.766]
[1641773425153,14.93501876,141.62,141.55,5.65165627]
[1641773425355,14.93501876,141.62,141.56,1.764]
[1641773425554,14.93501876,141.62,141.58,5.65050232]
[1641773425756,14.93501876,141.62,141.59,1.764]
[1641773425955,42.59980876,141.65,141.58,5.65050232]
[1641773426154,14.59980876,141.65,141.59,1.764]
[1641773426354,14.59980876,141.65,141.6,5.6493754]
[1641773426555,14.59980876,141.65,141.61,1.764]
[1641773426954,2.50116993,141.68,141.61,1.764]
[1641773427356,2.50116993,141.68,141.61,29.42879]
[1641773427756,2.50116993,141.68,141.61,27.66479]
[1641773427956,4.0,141.7,141.61,27.66479]
[1641773428158,35.92995993,141.71,141.61,27.66479]
[1641773428459,4.0,141.67,141.58,64.4404]
[1641773428860,4.0,141.64,141.55,97.47079]
[1641773429057,5.764,141.66,141.55,97.47079]
[1641773429258,27.66479,141.65,141.55,99.23479]
[1641773430261,33.42879,141.65,141.55,27.66479]
[1641773430862,2.48963487,141.64,141.55,27.66479]
[1641773431063,1.764,141.63,141.55,27.66479]
[1641773431263,5.764,141.63,141.55,27.66479]
[1641773431465,27.66479,141.62,141.54,31.6742896]
[1641773431661,1.764,141.63,141.54,31.6742896]
[1641773431861,1.764,141.64,141.54,31.6742896]
[1641773432065,1.764,141.64,141.54,27.66479]
[1641773432865,1.764,141.64,141.59,4.00871862]
[1641773433066,27.66479,141.65,141.59,4.00871862]
[1641773433869,31.66479,141.65,141.59,4.00871862]
[1641773434069,4.0,141.64,141.59,4.00871862]
[1641773434269,6.49040542,141.64,141.59,4.00871862]
[1641773434473,4.0,141.6,141.53,1.764]
[1641773434669,9.5533005,141.64,141.52,66.3543]
[1641773434670,4.0,141.59,141.52,66.3543]
[1641773434869,4.0,141.59,141.51,68.8045]
[1641773434870,4.0,141.56,141.51,68.8045]
[1641773435070,4.0,141.59,141.48,6.78506942]
[1641773435473,33.43079,141.6,141.5,27.66479]
[1641773436477,4.0,141.59,141.5,27.66479]
[1641773437476,4.0,141.56,141.48,1.766]
[1641773437679,4.0,141.56,141.45,29.43079]
[1641773437886,1.766,141.56,141.45,27.66479]
[1641773438380,5.766,141.56,141.45,27.66479]
[1641773438583,1.766,141.56,141.45,27.66479]
[1641773438781,1.766,141.56,141.45,51.66479]
[1641773438981,9.65036782,141.59,141.46,7.4210879]
[1641773439179,134.02052147,141.6,141.46,7.4210879]
[1641773439180,126.95588,141.6,141.48,24.0]
[1641773439381,125.18988,141.6,141.53,27.66479]
[1641773439581,55.32958,141.6,141.53,27.66479]
[1641773440181,2.45335684,141.59,141.53,27.66479]
[1641773440782,6.45335684,141.59,141.5,98.02389]
[1641773441082,4.0,141.58,141.5,27.66479]
[1641773441285,5.766,141.58,141.5,27.66479]
[1641773441782,1.766,141.58,141.5,27.66479]
[1641773442482,6.45335684,141.59,141.5,27.66479]
[1641773443284,4.0,141.58,141.5,27.66479]
[1641773443482,4.0,141.57,141.5,27.66479]
[1641773443681,4.0,141.56,141.48,160.76039]
[1641773444183,4.0,141.56,141.54,4.00964302]